fUSD/lending_fUSD_20240814
["ID","MTS","AMOUNT","RATE_DAILY","PERIOD"]
[334834263,1723606254345,-961.72,0.00013972,2]
[334834264,1723606254355,-500.0,0.00013972,2]
[334834265,1723606254365,-500.0,0.00013972,2]
[334834266,1723606254374,-748.73,0.00013972,2]
[334834267,1723606254384,-928.23,0.00013972,2]
[334834268,1723606254393,-986.7,0.00013972,2]
[334834269,1723606254403,-1475.15,0.00013972,2]
[334834270,1723606254412,-500.0,0.00013972,2]
[334834271,1723606254421,-1516.9,0.00013972,2]
[334834272,1723606254431,-520.36,0.00013972,2]
[334834273,1723606254440,-724.33,0.00013972,2]
[334834274,1723606254449,-1066.62,0.00013972,2]
[334834275,1723606254459,-500.0,0.00013972,2]
[334834276,1723606254468,-500.0,0.00013972,2]
[334834277,1723606254477,-500.0,0.00013972,2]
[334834278,1723606254487,-1339.64,0.00013972,2]
[334834279,1723606254496,-2145.04,0.00013972,2]
[334834280,1723606254505,-500.0,0.00013972,2]
[334834281,1723606254514,-1219.12,0.00013972,2]
[334834282,1723606254524,-2422.53,0.00013972,2]
[334834283,1723606254533,-770.76,0.00013972,2]
[334834284,1723606254543,-500.0,0.00013972,2]
[334834285,1723606254553,-500.0,0.00013972,2]
[334834286,1723606254562,-500.0,0.00013972,2]
[334834287,1723606254572,-613.62,0.00013972,2]
[334834288,1723606254581,-500.0,0.00013972,2]
[334834289,1723606254593,-1116.49,0.00013972,2]
[334834290,1723606254602,-2001.85,0.00013972,2]
[334834291,1723606254611,-1590.84,0.00013972,2]
[334834292,1723606254621,-500.0,0.00013972,2]
[334834293,1723606254631,-910.1,0.00013972,2]
[334834294,1723606254640,-500.0,0.00013972,2]
[334834295,1723606254649,-500.0,0.00013972,2]
[334834296,1723606254658,-875.89,0.00013972,2]
[334834297,1723606254667,-500.0,0.00013972,2]
[334834298,1723606254677,-500.0,0.00013972,2]
[334834299,1723606254686,-500.0,0.00013972,2]
[334834300,1723606254696,-500.0,0.00013972,2]
[334834301,1723606254705,-1610.3,0.00013972,2]
[334834302,1723606254715,-500.0,0.00013972,2]
[334834303,1723606254724,-646.94,0.00013972,2]
[334834304,1723606254734,-500.0,0.00013972,2]
[334834305,1723606254747,-500.0,0.00013972,2]
[334834306,1723606254756,-500.0,0.00013972,2]
[334834307,1723606254766,-500.0,0.00013972,2]
[334834308,1723606254775,-805.15,0.00013972,2]
[334834309,1723606254784,-2687.23,0.00013972,2]
[334834310,1723606254793,-500.0,0.00013972,2]
[334834311,1723606254802,-500.0,0.00013972,2]
[334834312,1723606254812,-500.0,0.00013972,2]
[334834313,1723606254821,-1026.7,0.00013972,2]
[334834314,1723606254831,-500.0,0.00013972,2]
[334834315,1723606254841,-500.0,0.00013972,2]
[334834316,1723606254851,-2055.39,0.00013972,2]
[334834317,1723606254861,-2059.88,0.00013972,2]
[334834318,1723606254870,-500.0,0.00013972,2]
[334834319,1723606254880,-500.0,0.00013972,2]
[334834320,1723606254889,-500.0,0.00013972,2]
[334834321,1723606254898,-500.0,0.00013972,2]
[334834322,1723606254907,-223.63288602,0.00013972,2]
[334834323,1723606254917,-1751.88,0.00013972,2]
[334834324,1723606254926,-500.0,0.00013972,2]
[334834325,1723606254936,-500.0,0.00013972,2]
[334834326,1723606254945,-545.63,0.00013972,2]
[334834327,1723606254955,-733.22,0.00013972,2]
[334834328,1723606254964,-500.0,0.00013972,2]
[334834329,1723606254974,-589.61,0.00013972,2]
[334834330,1723606254983,-500.0,0.00013972,2]
[334834331,1723606254992,-505.79311068,0.00013972,2]
[334834332,1723606255002,-1476.63,0.00013972,2]
[334834333,1723606255012,-500.0,0.00013972,2]
[334834334,1723606255022,-500.0,0.00013972,2]
[334834335,1723606255031,-2316.7,0.00013972,2]
[334834336,1723606255041,-500.0,0.00013972,2]
[334834337,1723606255050,-500.0,0.00013972,2]
[334834338,1723606255059,-435.31939779,0.00013972,2]
[334834339,1723606255069,-975.54,0.00013972,2]
[334834340,1723606255078,-1352.79,0.00013972,2]
[334834341,1723606255088,-500.0,0.00013972,2]
[334834342,1723606255097,-500.0,0.00013972,2]
[334834343,1723606255107,-500.0,0.00013972,2]
[334834344,1723606255116,-683.26,0.00013972,2]
[334834345,1723606255125,-500.0,0.00013972,2]
[334834346,1723606255136,-1857.42,0.00013972,2]
[334834347,1723606255145,-1064.71,0.00013972,2]
[334834348,1723606255154,-500.0,0.00013972,2]
[334834349,1723606255164,-500.0,0.00013972,2]
[334834350,1723606255172,-500.0,0.00013972,2]
[334834351,1723606255182,-2140.46,0.00013972,2]
[334834352,1723606255192,-500.0,0.00013972,2]
[334834353,1723606255201,-500.0,0.00013972,2]
[334834354,1723606255211,-2002.6,0.00013972,2]
[334834355,1723606255221,-500.0,0.00013972,2]
[334834356,1723606255230,-994.38,0.00013972,2]
[334834357,1723606255239,-1214.76,0.00013972,2]
[334834358,1723606255249,-503.12063072,0.00013972,2]
[334834359,1723606255258,-500.0,0.00013972,2]
[334834360,1723606255268,-500.0,0.00013972,2]
[334834361,1723606255277,-687.99,0.00013972,2]
[334834362,1723606255286,-500.0,0.00013972,2]
[334834363,1723606255296,-875.38,0.00013972,2]
[334834364,1723606255305,-2256.94,0.00013972,2]
[334834365,1723606255314,-500.0,0.00013972,2]
[334834366,1723606255323,-500.0,0.00013972,2]
[334834367,1723606255332,-542.84,0.00013972,2]
[334834368,1723606255350,-1186.97,0.00013972,2]
[334834369,1723606255359,-500.0,0.00013972,2]
[334834370,1723606255368,-500.0,0.00013972,2]
[334834371,1723606255378,-500.0,0.00013972,2]
[334834372,1723606255387,-2396.58,0.00013972,2]
[334834373,1723606255396,-500.0,0.00013972,2]
[334834374,1723606255406,-500.0,0.00013972,2]
[334834375,1723606255415,-500.0,0.00013972,2]
[334834376,1723606255424,-500.0,0.00013972,2]
[334834377,1723606255434,-500.0,0.00013972,2]
[334834378,1723606255443,-500.0,0.00013972,2]
[334834379,1723606255452,-1901.88,0.00013972,2]
[334834380,1723606255462,-500.0,0.00013972,2]
[334834381,1723606255471,-926.19,0.00013972,2]
[334834382,1723606255480,-745.53,0.00013972,2]
[334834383,1723606255490,-614.08,0.00013972,2]
[334834384,1723606255500,-1384.68,0.00013972,2]
[334834385,1723606255510,-500.0,0.00013972,2]
[334834386,1723606255782,-500.0,0.00013972,2]
[334834387,1723606255844,-500.0,0.00013972,2]
[334834388,1723606255854,-500.0,0.00013972,2]
[334834389,1723606255863,-699.17,0.00013972,2]
[334834390,1723606255872,-610.28,0.00013972,2]
[334834391,1723606255882,-500.0,0.00013972,2]
[334834392,1723606255893,-199.30744312,0.00013972,2]
[334834393,1723606255902,-500.0,0.00013972,2]
[334834394,1723606255912,-770.51,0.00013972,2]
[334834395,1723606255923,-500.0,0.00013972,2]
[334834396,1723606255934,-1153.37,0.00013972,2]
[334834397,1723606255943,-694.46,0.00013972,2]
[334834398,1723606255954,-1462.38,0.00013972,2]
[334834399,1723606255963,-500.0,0.00013972,2]
[334834400,1723606255973,-1122.17,0.00013972,2]
[334834401,1723606255983,-500.0,0.00013972,2]
[334834402,1723606255993,-1156.13,0.00013972,2]
[334834403,1723606256002,-500.0,0.00013972,2]
[334834404,1723606256011,-500.0,0.00013972,2]
[334834405,1723606256023,-500.0,0.00013972,2]
[334834406,1723606256033,-928.32,0.00013972,2]
[334834407,1723606256042,-500.0,0.00013972,2]
[334834408,1723606256051,-515.31,0.00013972,2]
[334834409,1723606256061,-1786.82,0.00013972,2]
[334834410,1723606256070,-500.0,0.00013972,2]
[334834411,1723606256081,-500.0,0.00013972,2]
[334834412,1723606256091,-1783.67,0.00013972,2]
[334834413,1723606256100,-500.0,0.00013972,2]
[334834414,1723606256110,-1322.93,0.00013972,2]
[334834415,1723606256120,-500.0,0.00013972,2]
[334834416,1723606256129,-5125.24,0.00013972,2]
[334834417,1723606256139,-924.38,0.00013972,2]
[334834418,1723606256148,-500.0,0.00013972,2]
[334834419,1723606256158,-539.32,0.00013972,2]
[334834420,1723606256167,-500.0,0.00013972,2]
[334834421,1723606256176,-2719.36,0.00013972,2]
[334834422,1723606256186,-1170.65,0.00013972,2]
[334834423,1723606256195,-770.29,0.00013972,2]
[334834424,1723606256204,-1497.14,0.00013972,2]
[334834425,1723606256213,-553.66,0.00013972,2]
[334834426,1723606256223,-612.26287691,0.00013972,2]
[334834427,1723606256232,-16400.66,0.00013972,2]
[334834428,1723606256241,-503.71159951,0.00013972,2]
[334834429,1723606256251,-564.36,0.00013972,2]
[334834430,1723606256259,-1305.03,0.00013972,2]
[334834431,1723606256269,-500.0,0.00013972,2]
[334834432,1723606256278,-500.0,0.00013972,2]
[334834433,1723606256288,-500.0,0.00013972,2]
[334834434,1723606256298,-5173.19,0.00013972,2]
[334834435,1723606256307,-500.0,0.00013972,2]
[334834436,1723606256317,-1004.75,0.00013972,2]
[334834437,1723606256326,-500.0,0.00013972,2]
[334834438,1723606256336,-175.45369232,0.00013972,2]
[334834439,1723606256346,-1530.58,0.00013972,2]
[334834440,1723606256356,-500.0,0.00013972,2]
[334834441,1723606256365,-1256.42,0.00013972,2]
[334834442,1723606256375,-1870.61,0.00013972,2]
[334834443,1723606256384,-500.0,0.00013972,2]
[334834444,1723606256394,-12596.78,0.00013972,2]
[334834445,1723606256403,-842.61,0.00013972,2]
[334834446,1723606256413,-500.0,0.00013972,2]
[334834447,1723606256423,-6083.44,0.00013972,2]
[334834448,1723606256432,-500.0,0.00013972,2]
[334834449,1723606256442,-3359.26,0.00013972,2]
[334834450,1723606256452,-2906.96,0.00013972,2]
[334834451,1723606256462,-1592.04,0.00013972,2]
[334834452,1723606256471,-750.28,0.00013972,2]
[334834453,1723606256481,-500.0,0.00013972,2]
[334834454,1723606256491,-1862.96,0.00013972,2]
[334834455,1723606256500,-1588.9,0.00013972,2]
[334834456,1723606256510,-1891.12,0.00013972,2]
[334834457,1723606256519,-500.0,0.00013972,2]
[334834458,1723606256529,-11429.35,0.00013972,2]
[334834459,1723606256538,-500.0,0.00013972,2]
[334834460,1723606256547,-658.23,0.00013972,2]
[334834461,1723606256557,-2138.35,0.00013972,2]
[334834462,1723606256566,-2102.25,0.00013972,2]
[334834463,1723606256576,-1413.63,0.00013972,2]
[334834464,1723606256585,-1399.72,0.00013972,2]
[334834465,1723606256596,-500.0,0.00013972,2]
[334834466,1723606256606,-500.0,0.00013972,2]
[334834467,1723606256616,-500.0,0.00013972,2]
[334834468,1723606256625,-500.0,0.00013972,2]
[334834469,1723606256635,-636.18,0.00013972,2]
[334834470,1723606256644,-5737.21,0.00013972,2]
[334834471,1723606256654,-1253.23,0.00013972,2]
[334834472,1723606256664,-2124.1,0.00013972,2]
[334834473,1723606256674,-651.66,0.00013972,2]
[334834474,1723606256683,-2351.24,0.00013972,2]
[334834475,1723606256693,-817.32,0.00013972,2]
[334834476,1723606256703,-2185.53,0.00013972,2]
[334834477,1723606256713,-500.0,0.00013972,2]
[334834478,1723606256722,-1352.61,0.00013972,2]
[334834479,1723606256732,-500.0,0.00013972,2]
[334834480,1723606256742,-684.57,0.00013972,2]
[334834481,1723606256752,-778.49,0.00013972,2]
[334834482,1723606256761,-500.0,0.00013972,2]
[334834483,1723606256770,-27654.11,0.00013972,2]
[334834484,1723606256779,-500.0,0.00013972,2]
[334834485,1723606256789,-1814.01,0.00013972,2]
[334834486,1723606256798,-10314.84,0.00013972,2]
[334834487,1723606256808,-590.29,0.00013972,2]
[334834488,1723606256818,-500.0,0.00013972,2]
[334834489,1723606256827,-1693.11,0.00013972,2]
[334834490,1723606256837,-500.0,0.00013972,2]
[334834491,1723606256846,-1593.87,0.00013972,2]
[334834492,1723606256855,-549.48,0.00013972,2]
[334834493,1723606256865,-500.0,0.00013972,2]
[334834494,1723606256874,-14230.09,0.00013972,2]
[334834495,1723606256883,-500.0,0.00013972,2]
[334834496,1723606256893,-2050.16,0.00013972,2]
[334834497,1723606256902,-993.77,0.00013972,2]
[334834498,1723606256911,-500.0,0.00013972,2]
[334834499,1723606256922,-3696.5,0.00013972,2]
[334834500,1723606256932,-9937.73,0.00013972,2]
[334834501,1723606256942,-921.41,0.00013972,2]
[334834502,1723606256951,-500.0,0.00013972,2]
[334834503,1723606256961,-1659.6,0.00013972,2]
[334834504,1723606256970,-9757.03,0.00013972,2]
[334834505,1723606256979,-500.0,0.00013972,2]
[334834506,1723606256988,-1044.77,0.00013972,2]
[334834507,1723606256997,-393.64098362,0.00013972,2]
[334834508,1723606257006,-627.95024301,0.00013972,2]
[334834509,1723606257016,-1562.26,0.00013972,2]
[334834510,1723606257025,-1339.04,0.00013972,2]
[334834511,1723606257034,-500.0,0.00013972,2]
[334834512,1723606257045,-875.35,0.00013972,2]
[334834513,1723606257054,-9774.8,0.00013972,2]
[334834514,1723606257063,-3603.02,0.00013972,2]
[334834515,1723606257072,-500.0,0.00013972,2]
[334834516,1723606257085,-500.0,0.00013972,2]
[334834517,1723606257096,-1150.12,0.00013972,2]
[334834518,1723606257105,-510.69836515,0.00013972,2]
[334834519,1723606257114,-1064.84,0.00013972,2]
[334834520,1723606257123,-29689.87,0.00013972,2]
[334834521,1723606257132,-1736.37,0.00013972,2]
[334834522,1723606257141,-500.0,0.00013972,2]
[334834523,1723606257151,-1500.0,0.00013972,2]
[334834524,1723606257160,-594.87,0.00013972,2]
[334834525,1723606257169,-500.0,0.00013972,2]
[334834526,1723606257178,-5930.72,0.00013972,2]
[334834527,1723606257188,-20601.04,0.00013972,2]
[334834528,1723606257197,-23067.66,0.00013972,2]
[334834529,1723606257206,-500.0,0.00013972,2]
[334834530,1723606257215,-826.8,0.00013972,2]
[334834531,1723606257225,-953.29,0.00013972,2]
[334834532,1723606257234,-500.0,0.00013972,2]
[334834533,1723606257244,-630.66441176,0.00013972,2]
[334834534,1723606257253,-500.0,0.00013972,2]
[334834535,1723606257262,-500.0,0.00013972,2]
[334834536,1723606257272,-1096.36,0.00013972,2]
[334834537,1723606257281,-2419.57,0.00013972,2]
[334834538,1723606257290,-500.0,0.00013972,2]
[334834539,1723606257299,-500.0,0.00013972,2]
[334834540,1723606257308,-8563.51,0.00013972,2]
[334834541,1723606257317,-1397.06,0.00013972,2]
[334834542,1723606257326,-1627.93,0.00013972,2]
[334834543,1723606257335,-1164.95,0.00013972,2]
[334834544,1723606257346,-500.0,0.00013972,2]
[334834545,1723606257355,-500.0,0.00013972,2]
[334834546,1723606257364,-1702.34,0.00013972,2]
[334834547,1723606257373,-501.61554789,0.00013972,2]
[334834548,1723606257383,-500.0,0.00013972,2]
[334834549,1723606257392,-2048.2,0.00013972,2]
[334834550,1723606257402,-851.9,0.00013972,2]
[334834551,1723606257412,-1238.06,0.00013972,2]
[334834552,1723606257422,-500.0,0.00013972,2]
[334834553,1723606257431,-16099.84,0.00013972,2]
[334834554,1723606257441,-628.86,0.00013972,2]
[334834555,1723606257450,-596.77,0.00013972,2]
[334834556,1723606257460,-2777.77,0.00013972,2]
[334834557,1723606257469,-1396.44,0.00013972,2]
[334834558,1723606257477,-1464.0,0.00013972,2]
[334834559,1723606257486,-500.0,0.00013972,2]
[334834560,1723606257495,-1764.6,0.00013972,2]
[334834561,1723606257504,-4171.0,0.00013972,2]
[334834562,1723606257513,-500.0,0.00013972,2]
[334834563,1723606257523,-748.05,0.00013972,2]
[334834564,1723606257532,-1367.2,0.00013972,2]
[334834565,1723606257541,-2379.71,0.00013972,2]
[334834566,1723606257550,-558.60778954,0.00013972,2]
[334834567,1723606257559,-884.33,0.00013972,2]
[334834568,1723606257568,-1243.89,0.00013972,2]
[334834569,1723606257577,-6336.06,0.00013972,2]
[334834570,1723606257586,-500.0,0.00013972,2]
[334834571,1723606257597,-6816.03,0.00013972,2]
[334834572,1723606257606,-1308.01,0.00013972,2]
[334834573,1723606257615,-2181.16,0.00013972,2]
[334834574,1723606257624,-506.04221215,0.00013972,2]
[334834575,1723606257634,-2759.13,0.00013972,2]
[334834576,1723606257643,-1071.9,0.00013972,2]
[334834577,1723606257652,-1039.89,0.00013972,2]
[334834578,1723606257661,-1837.41,0.00013972,2]
[334834579,1723606257670,-1232.31,0.00013972,2]
[334834580,1723606257680,-2210.33,0.00013972,2]
[334834581,1723606257689,-530.06,0.00013972,2]
[334834582,1723606257699,-500.0,0.00013972,2]
[334834583,1723606257708,-1400.58,0.00013972,2]
[334834584,1723606257718,-9975.79,0.00013972,2]
[334834585,1723606257727,-1200.24,0.00013972,2]
[334834586,1723606257737,-2699.35,0.00013972,2]
[334834587,1723606257749,-518.22,0.00013972,2]
[334834588,1723606257758,-500.0,0.00013972,2]
[334834589,1723606257768,-8510.16,0.00013972,2]
[334834590,1723606257777,-562.88,0.00013972,2]
[334834591,1723606257787,-806.35,0.00013972,2]
[334834592,1723606257797,-1090.4,0.00013972,2]
[334834593,1723606257806,-1785.97,0.00013972,2]
[334834594,1723606257816,-772.04,0.00013972,2]
[334834595,1723606257826,-1077.86,0.00013972,2]
[334834596,1723606257836,-1376.89,0.00013972,2]
[334834597,1723606257846,-1432.27,0.00013972,2]
[334834598,1723606257856,-1419.53,0.00013972,2]
[334834599,1723606257866,-2309.29,0.00013972,2]
[334834600,1723606257876,-4717.91,0.00013972,2]
[334834601,1723606257885,-500.0,0.00013972,2]
[334834602,1723606257894,-3633.76,0.00013972,2]
[334834603,1723606257903,-1027.69,0.00013972,2]
[334834604,1723606257913,-828.94,0.00013972,2]
[334834605,1723606257923,-16630.67,0.00013972,2]
[334834606,1723606257932,-1472.8,0.00013972,2]
[334834607,1723606257941,-2336.71,0.00013972,2]
[334834608,1723606257950,-716.19,0.00013972,2]
[334834609,1723606257960,-1630.08,0.00013972,2]
[334834610,1723606257969,-1034.77,0.00013972,2]
[334834611,1723606257978,-1495.12,0.00013972,2]
[334834612,1723606257987,-500.0,0.00013972,2]
[334834613,1723606257996,-500.0,0.00013972,2]
[334834614,1723606258005,-1585.64,0.00013972,2]
[334834615,1723606258015,-500.0,0.00013972,2]
[334834616,1723606258024,-1477.26,0.00013972,2]
[334834617,1723606258033,-500.0,0.00013972,2]
[334834618,1723606258042,-1409.85,0.00013972,2]
[334834619,1723606258051,-4316.92,0.00013972,2]
[334834620,1723606258060,-1414.28,0.00013972,2]
[334834621,1723606258069,-808.06,0.00013972,2]
[334834622,1723606258079,-500.0,0.00013972,2]
[334834623,1723606258088,-3209.27,0.00013972,2]
[334834624,1723606258098,-500.0,0.00013972,2]
[334834625,1723606258107,-754.12,0.00013972,2]
[334834626,1723606258116,-1167.72,0.00013972,2]
[334834627,1723606258126,-500.0,0.00013972,2]
[334834628,1723606258216,-500.0,0.00013972,2]
[334834629,1723606258226,-3222.79,0.00013972,2]
[334834630,1723606258235,-6375.33,0.00013972,2]
[334834631,1723606258245,-3914.08,0.00013972,2]
[334834632,1723606258254,-500.0,0.00013972,2]
[334834633,1723606258265,-500.0,0.00013972,2]
[334834634,1723606258274,-500.0,0.00013972,2]
[334834635,1723606258283,-4368.17,0.00013972,2]
[334834636,1723606258292,-3464.28,0.00013972,2]
[334834637,1723606258301,-1316.98,0.00013972,2]
[334834638,1723606258310,-500.0,0.00013972,2]
[334834639,1723606258320,-3951.04,0.00013972,2]
[334834640,1723606258329,-500.0,0.00013972,2]
[334834641,1723606258340,-515.72,0.00013972,2]
[334834642,1723606258349,-1503.5,0.00013972,2]
[334834643,1723606258358,-500.0,0.00013972,2]
[334834644,1723606258367,-7597.75,0.00013972,2]
[334834645,1723606258376,-500.0,0.00013972,2]
[334834646,1723606258385,-1180.15,0.00013972,2]
[334834647,1723606258395,-500.0,0.00013972,2]
[334834648,1723606258404,-2371.76,0.00013972,2]
[334834649,1723606258413,-823.66,0.00013972,2]
[334834650,1723606258422,-2626.42,0.00013972,2]
[334834651,1723606258431,-2213.62,0.00013972,2]
[334834652,1723606258440,-9863.1,0.00013972,2]
[334834653,1723606258450,-3408.68,0.00013972,2]
[334834654,1723606258459,-13054.54,0.00013972,2]
[334834655,1723606258468,-1051.11,0.00013972,2]
[334834656,1723606258477,-2708.69,0.00013972,2]
[334834657,1723606258486,-500.0,0.00013972,2]
[334834658,1723606258495,-531.32,0.00013972,2]
[334834659,1723606258505,-2248.27,0.00013972,2]
[334834660,1723606258514,-500.0,0.00013972,2]
[334834661,1723606258525,-1699.77,0.00013972,2]
[334834662,1723606258535,-4651.28,0.00013972,2]
[334834663,1723606258544,-5188.03,0.00013972,2]
[334834664,1723606258554,-263.99344206,0.00013972,2]
[334834665,1723606258563,-2317.6,0.00013972,2]
[334834666,1723606258572,-500.0,0.00013972,2]
[334834667,1723606258581,-931.26,0.00013972,2]
[334834668,1723606258591,-500.0,0.00013972,2]
[334834669,1723606258600,-3304.68,0.00013972,2]
[334834670,1723606258609,-500.0,0.00013972,2]
[334834671,1723606258619,-1265.11,0.00013972,2]
[334834672,1723606258628,-614.46,0.00013972,2]
[334834673,1723606258638,-500.0,0.00013972,2]
[334834674,1723606258647,-500.0,0.00013972,2]
[334834675,1723606258656,-2028.9,0.00013972,2]
[334834676,1723606258666,-3647.07,0.00013972,2]
[334834677,1723606258675,-500.0,0.00013972,2]
[334834678,1723606258685,-3715.29,0.00013972,2]
[334834679,1723606258694,-4675.48,0.00013972,2]
[334834680,1723606258703,-500.0,0.00013972,2]
[334834681,1723606258713,-500.0,0.00013972,2]
[334834682,1723606258722,-500.0,0.00013972,2]
[334834683,1723606258731,-3923.08,0.00013972,2]
[334834684,1723606258744,-500.0,0.00013972,2]
[334834685,1723606258753,-3224.78,0.00013972,2]
[334834686,1723606258762,-4295.2,0.00013972,2]
[334834687,1723606258771,-825.04,0.00013972,2]
[334834688,1723606258780,-1259.06,0.00013972,2]
[334834689,1723606258790,-500.0,0.00013972,2]
[334834690,1723606258799,-500.0,0.00013972,2]
[334834691,1723606258808,-1723.66,0.00013972,2]
[334834692,1723606258818,-500.0,0.00013972,2]
[334834693,1723606258829,-2684.08,0.00013972,2]
[334834694,1723606258838,-3159.18,0.00013972,2]
[334834695,1723606258853,-4205.68,0.00013972,2]
[334834696,1723606258862,-500.0,0.00013972,2]
[334834697,1723606258871,-500.0,0.00013972,2]
[334834698,1723606258881,-500.0,0.00013972,2]
[334834699,1723606258890,-12670.39,0.00013972,2]
[334834700,1723606258899,-1451.8,0.00013972,2]
[334834701,1723606258909,-500.0,0.00013972,2]
[334834702,1723606258918,-944.25,0.00013972,2]
[334834703,1723606258927,-5210.36,0.00013972,2]
[334834704,1723606258936,-500.0,0.00013972,2]
[334834705,1723606258946,-500.0,0.00013972,2]
[334834706,1723606258955,-2653.26,0.00013972,2]
[334834707,1723606258964,-1486.96,0.00013972,2]
[334834708,1723606258973,-2658.12,0.00013972,2]
[334834709,1723606258982,-500.0,0.00013972,2]
[334834710,1723606258992,-1068.96,0.00013972,2]
[334834711,1723606259001,-1036.59,0.00013972,2]
[334834712,1723606259010,-536.54,0.00013972,2]
[334834713,1723606259020,-3034.55,0.00013972,2]
[334834714,1723606259029,-666.32,0.00013972,2]
[334834715,1723606259039,-3671.67,0.00013972,2]
[334834716,1723606259048,-3682.9,0.00013972,2]
[334834717,1723606259058,-1514.82,0.00013972,2]
[334834718,1723606259067,-500.0,0.00013972,2]
[334834719,1723606259076,-1352.59,0.00013972,2]
[334834720,1723606259085,-817.61,0.00013972,2]
[334834721,1723606259097,-3930.45,0.00013972,2]
[334834722,1723606259107,-500.0,0.00013972,2]
[334834723,1723606259116,-1099.67,0.00013972,2]
[334834724,1723606259126,-3001.63,0.00013972,2]
[334834725,1723606259135,-792.89,0.00013972,2]
[334834726,1723606259144,-1292.34,0.00013972,2]
[334834727,1723606259153,-1091.54,0.00013972,2]
[334834728,1723606259162,-4457.11,0.00013972,2]
[334834729,1723606259172,-500.0,0.00013972,2]
[334834730,1723606259181,-549.36,0.00013972,2]
[334834731,1723606259190,-896.44,0.00013972,2]
[334834732,1723606259199,-1018.26,0.00013972,2]
[334834733,1723606259209,-581.85,0.00013972,2]
[334834734,1723606259218,-500.0,0.00013972,2]
[334834735,1723606259227,-2569.68,0.00013972,2]
[334834736,1723606259236,-1376.93,0.00013972,2]
[334834737,1723606259246,-500.0,0.00013972,2]
[334834738,1723606259255,-571.51,0.00013972,2]
[334834739,1723606259265,-3140.85,0.00013972,2]
[334834740,1723606259273,-3734.95,0.00013972,2]
[334834741,1723606259282,-500.0,0.00013972,2]
[334834742,1723606259292,-3302.41,0.00013972,2]
[334834743,1723606259301,-500.0,0.00013972,2]
[334834744,1723606259310,-500.0,0.00013972,2]
[334834745,1723606259319,-670.67,0.00013972,2]
[334834746,1723606259329,-2638.69,0.00013972,2]
[334834747,1723606259338,-2369.05,0.00013972,2]
[334834748,1723606259354,-500.0,0.00013972,2]
[334834749,1723606259367,-500.0,0.00013972,2]
[334834750,1723606259377,-2001.83,0.00013972,2]
[334834751,1723606259386,-13946.1,0.00013972,2]
[334834752,1723606259395,-506.15126821,0.00013972,2]
[334834753,1723606259404,-500.0,0.00013972,2]
[334834754,1723606259413,-2345.36,0.00013972,2]
[334834755,1723606259422,-508.94606456,0.00013972,2]
[334834756,1723606259431,-567.9,0.00013972,2]
[334834757,1723606259441,-520.38427232,0.00013972,2]
[334834758,1723606259451,-2422.96,0.00013972,2]
[334834759,1723606259459,-1927.98,0.00013972,2]
[334834760,1723606259468,-500.0,0.00013972,2]
[334834761,1723606259477,-7987.29,0.00013972,2]
[334834762,1723606259487,-500.0,0.00013972,2]